fUSD/lending_fUSD_20240729
["ID","MTS","AMOUNT","RATE_DAILY","PERIOD"]
[333517754,1722225057412,-500.0,0.00010999,2]
[333517755,1722225057421,-500.0,0.00010999,2]
[333517756,1722225057430,-500.0,0.00010999,2]
[333517757,1722225057439,-500.0,0.00010999,2]
[333517758,1722225057449,-500.0,0.00010999,2]
[333517759,1722225057462,-500.0,0.00010999,2]
[333517760,1722225057473,-500.0,0.00010999,2]
[333517761,1722225057483,-500.0,0.00010999,2]
[333517762,1722225057492,-500.0,0.00010999,2]
[333517763,1722225057502,-500.0,0.00010999,2]
[333517764,1722225057512,-500.0,0.00010999,2]
[333517765,1722225057521,-500.0,0.00010999,2]
[333517766,1722225057534,-500.0,0.00010999,2]
[333517767,1722225057543,-500.0,0.00010999,2]
[333517768,1722225057553,-500.0,0.00010999,2]
[333517769,1722225057563,-500.0,0.00010999,2]
[333517770,1722225057573,-500.0,0.00010999,2]
[333517771,1722225057583,-500.0,0.00010999,2]
[333517772,1722225057592,-500.0,0.00010999,2]
[333517773,1722225057603,-150.51749003,0.00010999,2]
[333517774,1722225057612,-500.0,0.00010999,2]
[333517775,1722225057622,-500.0,0.00010999,2]
[333517776,1722225057631,-571.38196426,0.00010999,2]
[333517777,1722225057640,-500.0,0.00010999,2]
[333517778,1722225057649,-500.0,0.00010999,2]
[333517779,1722225057658,-500.0,0.00010999,2]
[333517780,1722225057667,-500.0,0.00010999,2]
[333517781,1722225057676,-500.0,0.00010999,2]
[333517782,1722225057685,-500.0,0.00010999,2]
[333517783,1722225057695,-500.0,0.00010999,2]
[333517784,1722225057704,-500.0,0.00010999,2]
[333517785,1722225057712,-729.06,0.00010999,2]
[333517786,1722225057722,-729.06,0.00010999,2]
[333517787,1722225057731,-729.06,0.00010999,2]
[333517788,1722225057740,-729.06,0.00010999,2]
[333517789,1722225057749,-646.33,0.00010999,2]
[333517790,1722225057758,-729.06,0.00010999,2]
[333517791,1722225057767,-729.06,0.00010999,2]
[333517792,1722225057776,-646.33,0.00010999,2]
[333517793,1722225057785,-729.06,0.00010999,2]
[333517794,1722225057794,-500.0,0.00010999,2]
[333517795,1722225057803,-646.33,0.00010999,2]
[333517796,1722225057812,-729.06,0.00010999,2]
[333517797,1722225057821,-500.0,0.00010999,2]
[333517798,1722225057830,-646.33,0.00010999,2]
[333517799,1722225057839,-729.06,0.00010999,2]
[333517800,1722225057848,-496.9369814,0.00010999,2]
[333517801,1722225057857,-646.33,0.00010999,2]
[333517802,1722225057866,-729.06,0.00010999,2]
[333517803,1722225057876,-646.33,0.00010999,2]
[333517804,1722225057885,-646.33,0.00010999,2]
[333517805,1722225057894,-500.0,0.00010999,2]
[333517806,1722225057903,-646.33,0.00010999,2]
[333517807,1722225057912,-500.0,0.00010999,2]
[333517808,1722225057921,-646.33,0.00010999,2]
[333517809,1722225057930,-500.0,0.00010999,2]
[333517810,1722225057940,-646.33,0.00010999,2]
[333517811,1722225057949,-500.0,0.00010999,2]
[333517812,1722225057958,-646.33,0.00010999,2]
[333517813,1722225057968,-500.0,0.00010999,2]
[333517814,1722225057977,-646.33,0.00010999,2]
[333517815,1722225057986,-500.0,0.00010999,2]
[333517816,1722225057994,-646.33,0.00010999,2]
[333517817,1722225058006,-646.33,0.00010999,2]
[333517818,1722225058015,-500.0,0.00010999,2]
[333517819,1722225058024,-646.33,0.00010999,2]
[333517820,1722225058032,-500.0,0.00010999,2]
[333517821,1722225058041,-646.33,0.00010999,2]
[333517822,1722225058050,-500.0,0.00010999,2]
[333517823,1722225058059,-646.33,0.00010999,2]
[333517824,1722225058069,-500.0,0.00010999,2]
[333517825,1722225058078,-521.3,0.00010999,2]
[333517826,1722225058087,-646.33,0.00010999,2]
[333517827,1722225058096,-646.33,0.00010999,2]
[333517828,1722225058105,-646.33,0.00010999,2]
[333517829,1722225058115,-729.06,0.00010999,2]
[333517830,1722225058124,-646.34673221,0.00010999,2]
[333517831,1722225058133,-729.06,0.00010999,2]
[333517832,1722225058142,-729.06,0.00010999,2]
[333517833,1722225058151,-729.06,0.00010999,2]
[333517834,1722225058160,-500.0,0.00010999,2]
[333517835,1722225058169,-729.06,0.00010999,2]
[333517836,1722225058178,-500.0,0.00010999,2]
[333517837,1722225058188,-500.0,0.00010999,2]
[333517838,1722225058196,-329.25764053,0.00010999,2]
[333517839,1722225058206,-729.06,0.00010999,2]
[333517840,1722225058215,-729.06,0.00010999,2]
[333517841,1722225058226,-729.06,0.00010999,2]
[333517842,1722225058235,-729.06,0.00010999,2]
[333517843,1722225058244,-729.06,0.00010999,2]
[333517844,1722225058253,-729.20265889,0.00010999,2]
[333517845,1722225058262,-1488.65,0.00010999,2]
[333517846,1722225058271,-1157.99,0.00010999,2]
[333517847,1722225058280,-1488.65,0.00010999,2]
[333517848,1722225058289,-1157.99,0.00010999,2]
[333517849,1722225058298,-1488.65,0.00010999,2]
[333517850,1722225058307,-1157.99,0.00010999,2]
[333517851,1722225058316,-500.0,0.00010999,2]
[333517852,1722225058325,-1488.65,0.00010999,2]
[333517853,1722225058334,-1157.99,0.00010999,2]
[333517854,1722225058343,-500.0,0.00010999,2]
[333517855,1722225058352,-1488.65,0.00010999,2]
[333517856,1722225058362,-1157.99,0.00010999,2]
[333517857,1722225058370,-500.0,0.00010999,2]
[333517858,1722225058379,-1488.65,0.00010999,2]
[333517859,1722225058388,-1157.99,0.00010999,2]
[333517860,1722225058397,-1488.65,0.00010999,2]
[333517861,1722225058406,-500.0,0.00010999,2]
[333517862,1722225058415,-1157.99,0.00010999,2]
[333517863,1722225058424,-500.0,0.00010999,2]
[333517864,1722225058432,-1488.65,0.00010999,2]
[333517865,1722225058441,-1157.99,0.00010999,2]
[333517866,1722225058451,-1488.65,0.00010999,2]
[333517867,1722225058460,-1157.99,0.00010999,2]
[333517868,1722225058472,-1488.65,0.00010999,2]
[333517869,1722225058482,-500.0,0.00010999,2]
[333517870,1722225058491,-1488.65,0.00010999,2]
[333517871,1722225058502,-1157.99,0.00010999,2]
[333517872,1722225058511,-500.0,0.00010999,2]
[333517873,1722225058520,-1488.65,0.00010999,2]
[333517874,1722225058532,-1157.99,0.00010999,2]
[333517875,1722225058541,-500.0,0.00010999,2]
[333517876,1722225058550,-1488.65,0.00010999,2]
[333517877,1722225058559,-1157.99,0.00010999,2]
[333517878,1722225058569,-1488.65,0.00010999,2]
[333517879,1722225058578,-500.0,0.00010999,2]
[333517880,1722225058588,-1157.99,0.00010999,2]
[333517881,1722225058597,-1488.65,0.00010999,2]
[333517882,1722225058607,-500.0,0.00010999,2]
[333517883,1722225058617,-1157.99,0.00010999,2]
[333517884,1722225058626,-500.0,0.00010999,2]
[333517885,1722225058635,-1488.65,0.00010999,2]
[333517886,1722225058644,-1157.99,0.00010999,2]
[333517887,1722225058653,-500.0,0.00010999,2]
[333517888,1722225058662,-1488.65,0.00010999,2]
[333517889,1722225058671,-1157.99,0.00010999,2]
[333517890,1722225058680,-500.0,0.00010999,2]
[333517891,1722225058689,-1157.99,0.00010999,2]
[333517892,1722225058699,-1488.65,0.00010999,2]
[333517893,1722225058708,-500.0,0.00010999,2]
[333517894,1722225058719,-1488.65,0.00010999,2]
[333517895,1722225058729,-1157.99,0.00010999,2]
[333517896,1722225058738,-500.0,0.00010999,2]
[333517897,1722225058748,-1488.65,0.00010999,2]
[333517898,1722225058758,-1157.99,0.00010999,2]
[333517899,1722225058767,-500.0,0.00010999,2]
[333517900,1722225058777,-1157.99,0.00010999,2]
[333517901,1722225058786,-472.02545208,0.00010999,2]
[333517902,1722225058819,-1016.81403912,0.00010999,2]
[333517903,1722225058829,-738.48433214,0.00010999,2]
[333517904,1722225058840,-419.50993229,0.00010999,2]
[333517905,1722225058850,-500.0,0.00010999,2]
[333517906,1722225058859,-505.57481964,0.00010999,2]
[333517907,1722225058869,-155.95302254,0.00010999,2]
[333517908,1722225058878,-500.0,0.00010999,2]
[333517909,1722225058888,-414.54936869,0.00010999,2]
[333517910,1722225058927,-515.74017624,0.00010958,2]
[333517911,1722225058936,-85.45063131,0.00010999,2]
[333517912,1722225058946,-500.0,0.00010999,2]
[333517913,1722225058955,-500.0,0.00010999,2]
[333517914,1722225058964,-500.0,0.00010999,2]
[333517915,1722225058974,-500.0,0.00010999,2]
[333517916,1722225058983,-500.0,0.00010999,2]
[333517917,1722225058993,-500.0,0.00010999,2]
[333517918,1722225059002,-500.0,0.00010999,2]
[333517919,1722225059011,-500.0,0.00010999,2]
[333517920,1722225059020,-500.0,0.00010999,2]
[333517921,1722225059030,-519.33898711,0.00010999,2]
[333517922,1722225059039,-500.0,0.00010999,2]
[333517923,1722225059048,-500.0,0.00010999,2]
[333517924,1722225059058,-500.0,0.00010999,2]
[333517925,1722225059067,-500.0,0.00010999,2]
[333517926,1722225059076,-500.0,0.00010999,2]
[333517927,1722225059086,-241.8,0.00010999,2]
[333517928,1722225059095,-500.0,0.00010999,2]
[333517929,1722225059104,-500.0,0.00010999,2]
[333517930,1722225059114,-500.0,0.00010999,2]
[333517931,1722225059123,-500.0,0.00010999,2]
[333517932,1722225059132,-500.0,0.00010999,2]
[333517933,1722225059142,-500.0,0.00010999,2]
[333517934,1722225059151,-515.84914999,0.00010999,2]
[333517935,1722225059160,-500.0,0.00010999,2]
[333517936,1722225059169,-500.0,0.00010999,2]
[333517937,1722225059178,-646.15245382,0.00010999,2]
[333517938,1722225059187,-500.0,0.00010999,2]
[333517939,1722225059196,-500.0,0.00010999,2]
[333517940,1722225059206,-500.0,0.00010999,2]
[333517941,1722225059215,-500.0,0.00010999,2]
[333517942,1722225059225,-500.0,0.00010999,2]
[333517943,1722225059234,-500.0,0.00010999,2]
[333517944,1722225059243,-500.0,0.00010999,2]
[333517945,1722225059252,-500.0,0.00010999,2]
[333517946,1722225059261,-500.0,0.00010999,2]
[333517947,1722225059270,-500.0,0.00010999,2]
[333517948,1722225059280,-500.0,0.00010999,2]
[333517949,1722225059289,-500.0,0.00010999,2]
[333517950,1722225059299,-500.0,0.00010999,2]
[333517951,1722225059308,-500.0,0.00010999,2]
[333517952,1722225059317,-500.0,0.00010999,2]
[333517953,1722225059326,-500.0,0.00010999,2]
[333517954,1722225059335,-500.0,0.00010999,2]
[333517955,1722225059344,-500.0,0.00010999,2]
[333517956,1722225059353,-396.63657836,0.00010999,2]
[333517957,1722225059362,-500.0,0.00010999,2]
[333517958,1722225059371,-619.85596859,0.00010999,2]
[333517959,1722225059380,-500.0,0.00010999,2]
[333517960,1722225059389,-500.0,0.00010999,2]
[333517961,1722225059398,-272.43152203,0.00010999,2]
[333517962,1722225059408,-500.0,0.00010999,2]
[333517963,1722225059417,-500.0,0.00010999,2]
[333517964,1722225059426,-500.0,0.00010999,2]
[333517965,1722225059436,-500.0,0.00010999,2]
[333517966,1722225059445,-500.0,0.00010999,2]
[333517967,1722225059454,-500.0,0.00010999,2]
[333517968,1722225059463,-500.0,0.00010999,2]
[333517969,1722225059473,-556.05,0.00010999,2]
[333517970,1722225059482,-155.23640321,0.00010999,2]
[333517971,1722225059491,-500.0,0.00010999,2]
[333517972,1722225059500,-500.0,0.00010999,2]
[333517973,1722225059509,-500.0,0.00010999,2]
[333517974,1722225059518,-514.20308924,0.00010999,2]
[333517975,1722225059529,-500.0,0.00010999,2]
[333517976,1722225059539,-503.48836819,0.00010999,2]
[333517977,1722225059549,-515.40165775,0.00010999,2]
[333517978,1722225059558,-500.0,0.00010999,2]
[333517979,1722225059567,-539.57498433,0.00010999,2]
[333517980,1722225059577,-45.95377365,0.00010999,2]
[333517981,1722225059589,-509.36363791,0.00010999,2]
[333517982,1722225059600,-108.22258844,0.00010999,2]
[333517983,1722225059611,-663.54,0.00010999,2]
[333517984,1722225059621,-663.54,0.00010999,2]
[333517985,1722225059630,-663.54,0.00010999,2]
[333517986,1722225059639,-663.54,0.00010999,2]
[333517987,1722225059647,-663.54,0.00010999,2]
[333517988,1722225059656,-663.54,0.00010999,2]
[333517989,1722225059665,-663.54,0.00010999,2]
[333517990,1722225059674,-663.54,0.00010999,2]
[333517991,1722225059683,-663.54,0.00010999,2]
[333517992,1722225059692,-663.54,0.00010999,2]
[333517993,1722225059702,-663.54,0.00010999,2]
[333517994,1722225059711,-663.54,0.00010999,2]
[333517995,1722225059721,-500.0,0.00010999,2]
[333517996,1722225059730,-500.0,0.00010999,2]
[333517997,1722225059739,-500.0,0.00010999,2]
[333517998,1722225059748,-500.0,0.00010999,2]
[333517999,1722225059757,-663.54,0.00010999,2]
[333518000,1722225059766,-500.0,0.00010999,2]
[333518001,1722225059775,-663.54,0.00010999,2]
[333518002,1722225059785,-500.0,0.00010999,2]
[333518003,1722225059795,-663.54,0.00010999,2]
[333518004,1722225059804,-500.0,0.00010999,2]
[333518005,1722225059813,-663.54,0.00010999,2]
[333518006,1722225059824,-500.0,0.00010999,2]
[333518007,1722225059833,-663.54,0.00010999,2]
[333518008,1722225059842,-500.0,0.00010999,2]
[333518009,1722225059852,-663.54,0.00010999,2]
[333518010,1722225059861,-500.0,0.00010999,2]
[333518011,1722225059871,-663.54,0.00010999,2]
[333518012,1722225059880,-500.0,0.00010999,2]
[333518013,1722225059890,-500.0,0.00010999,2]
[333518014,1722225059900,-500.0,0.00010999,2]
[333518015,1722225059910,-663.60489126,0.00010999,2]
[333518016,1722225059920,-209.90553601,0.00010999,2]
[333518017,1722225059929,-500.0,0.00010999,2]
[333518018,1722225059939,-500.0,0.00010999,2]
[333518019,1722225059948,-500.0,0.00010999,2]
[333518020,1722225059957,-500.0,0.00010999,2]
[333518021,1722225059967,-151.04040466,0.00010999,2]
[333518022,1722225059976,-15631.74659202,0.00011,2]
[333518023,1722225059988,-625.43621902,0.00011,2]
[333518024,1722225059999,-1222.41376747,0.00011,2]
[333518025,1722225060011,-12611.58875453,0.00011,2]
[333518026,1722225060027,-4751.00774101,0.00011,2]
[333518027,1722225060039,-1013.27421864,0.00011,2]
[333518028,1722225060051,-397.66172814,0.00011,2]
[333518029,1722225060062,-7100.50228651,0.00011,2]
[333518030,1722225060072,-529.60407928,0.00011,2]
[333518031,1722225060085,-644.91569937,0.00011,2]
[333518032,1722225060321,-4642.9854,0.00010376,2]
[333518033,1722225060330,-153.57580018,0.00011,2]
[333518034,1722225060342,-287.71806438,0.00011,2]
[333518035,1722225060353,-15183.09361482,0.00011,2]
[333518036,1722225060365,-95974.19554712,0.00011,2]
[333518037,1722225060376,-1769.79292456,0.00011,2]
[333518038,1722225060402,-6375.00000002,0.00011,2]
[333518039,1722225060413,-3205.8,0.00011,2]
[333518040,1722225060425,-469.65,0.00011,2]
[333518041,1722225060436,-6254.49072629,0.00011,2]
[333518042,1722225060447,-382.88143247,0.00011,2]
[333518043,1722225060463,-389.63124367,0.00011,2]
[333518044,1722225060476,-662.63936826,0.00011,2]
[333518066,1722226233072,-416.65,8.219e-05,2]
[333518067,1722226233082,-870.4,9.634e-05,2]
[333518068,1722226233091,-162.0,9.669e-05,2]
[333518069,1722226233101,-1100.0,9.9e-05,3]
[333518070,1722226233111,-2476.68,9.926e-05,2]
[333518071,1722226233121,-1250.0,0.0001,2]
[333518072,1722226233130,-2200.0,0.0001,3]
[333518073,1722226233140,-43.32612154,0.0001,2]
[333518074,1722226233151,-312.36387846,0.0001,2]
[333518075,1722226233161,-530.19,0.0001,2]
[333518076,1722226233170,-150.0,0.0001,2]
[333518077,1722226233179,-300.0,0.00010099,2]
[333518079,1722226233189,-300.0,0.00010099,2]
[333518081,1722226233200,-3300.0,0.000101,3]
[333518083,1722226233210,-150.0,0.00010192,2]
[333518085,1722226233221,-150.0,0.00010192,2]
[333518087,1722226233231,-150.0,0.00010192,2]
[333518088,1722226233241,-150.0,0.00010192,2]
[333518090,1722226233253,-150.0,0.00010192,2]
[333518092,1722226233263,-530.19,0.000102,2]
[333518094,1722226233273,-391.91,0.000102,2]
[333518096,1722226233282,-499.99,0.000102,2]
[333518098,1722226233292,-4400.0,0.000102,3]
[333518100,1722226233302,-5500.0,0.000103,3]
[333518102,1722226233312,-150.99,0.000104,2]
[333518103,1722226233321,-150.0,0.000104,2]
[333518104,1722226233331,-159.3,0.000104,2]
[333518105,1722226233340,-709.08,0.000104,2]
[333518106,1722226233350,-1100.0,0.000104,3]
[333518108,1722226233360,-150.0,0.000104,2]
[333518110,1722226233370,-150.0,0.000104,2]
[333518112,1722226233382,-416.65,0.00010463,2]
[333518114,1722226233392,-765.66,0.00010488,2]
[333518115,1722226233401,-1100.0,0.000105,3]
[333518116,1722226233411,-150.0,0.00010506,2]
[333518117,1722226233420,-1097.68458133,0.00010507,2]
[333518118,1722226233533,-14741.76761867,0.00010507,2]
[333518119,1722226233542,-22509.8942,0.00010507,2]
[333518120,1722226233552,-348.92,0.00010541,2]
[333518121,1722226233561,-1100.0,0.000106,3]
[333518122,1722226233571,-150.0,0.00010678,2]
[333518123,1722226233580,-150.47,0.00010678,2]
[333518124,1722226233589,-150.0,0.00010678,2]
[333518125,1722226233598,-150.61,0.00010678,2]
[333518126,1722226233607,-355.93,0.00010678,2]
[333518127,1722226233617,-425.44,0.00010678,2]
[333518128,1722226233626,-301.58,0.00010678,2]
[333518129,1722226233635,-150.0,0.00010678,2]
[333518130,1722226233645,-150.0,0.00010678,2]
[333518131,1722226233654,-150.0,0.00010678,2]
[333518132,1722226233664,-150.0,0.00010678,2]
[333518133,1722226233674,-150.0,0.00010678,2]
[333518134,1722226233683,-150.0,0.00010678,2]
[333518135,1722226233692,-150.0,0.00010678,2]
[333518136,1722226233703,-150.0,0.00010678,2]
[333518137,1722226233713,-1100.0,0.000107,3]
[333518138,1722226233723,-1011.29604135,0.00010779,2]
[333518139,1722226233733,-1522.1012,0.000108,2]
[333518140,1722226233742,-636.5223,0.000108,2]
[333518141,1722226233752,-192.378,0.000108,2]
[333518142,1722226233761,-1200.0,0.000108,3]
[333518143,1722226233771,-870.4,0.00010838,2]
[333518144,1722226233780,-2515.0,0.00010849,2]
[333518145,1722226233789,-2755.9863,0.00010858,2]
[333518146,1722226233798,-1254.0,0.00010883,2]
[333518147,1722226233807,-864.837,0.00010883,2]
[333518148,1722226233817,-315.158,0.00010883,2]
[333518149,1722226233826,-350.772,0.00010883,2]
[333518150,1722226233835,-621.0,0.00010883,2]
[333518151,1722226233844,-445.0,0.00010883,2]
[333518152,1722226233853,-450.0,0.00010883,2]
[333518153,1722226233864,-281.344,0.00010883,2]
[333518154,1722226233875,-3286.0,0.00010883,2]
[333518155,1722226233884,-1996.0,0.00010883,2]
[333518156,1722226233894,-1518.112,0.00010883,2]
[333518157,1722226233903,-1207.242,0.00010883,2]
[333518158,1722226233914,-5874.651,0.00010883,2]
[333518159,1722226233925,-38384.0,0.00010883,2]
[333518160,1722226233934,-5163.536,0.00010883,2]
[333518161,1722226233943,-1681.771,0.00010883,2]
[333518162,1722226233957,-2207.82550589,0.00010899,2]
[333518163,1722226233967,-2207.82550589,0.00010899,2]
[333518164,1722226233977,-2207.82550589,0.00010899,2]
[333518165,1722226233987,-167.53446681,0.00010899,2]
[333518166,1722226233996,-16206.08139936,0.00010899,2]
[333518167,1722226234006,-16206.08139928,0.00010899,2]
[333518168,1722226234015,-16206.08139928,0.00010899,2]
[333518169,1722226234025,-16206.08139928,0.00010899,2]
[333518170,1722226234034,-16206.08139928,0.00010899,2]
[333518171,1722226234044,-16206.08139928,0.00010899,2]
[333518172,1722226234054,-16206.08139928,0.00010899,2]
[333518173,1722226234063,-16206.08139928,0.00010899,2]
[333518174,1722226234073,-16206.08139928,0.00010899,2]
[333518175,1722226234082,-1006.0,0.000109,2]
[333518176,1722226234092,-1000.0,0.000109,2]
[333518177,1722226234102,-1000.0,0.000109,2]
[333518178,1722226234111,-1000.0,0.000109,3]
[333518179,1722226234121,-2207.82550589,0.000109,2]
[333518180,1722226234131,-1000.0,0.000109,3]
[333518181,1722226234139,-167.53446681,0.000109,2]
[333518182,1722226234149,-1323.3697911,0.000109,2]
[333518183,1722226234158,-1323.36979095,0.000109,2]
[333518184,1722226234168,-1323.36979095,0.000109,2]
[333518185,1722226234177,-1323.36979095,0.000109,2]
[333518186,1722226234187,-1323.36979095,0.000109,2]
[333518187,1722226234197,-1323.36979095,0.000109,2]
[333518188,1722226234208,-1323.36979095,0.000109,2]
[333518189,1722226234218,-1323.36979095,0.000109,2]
[333518190,1722226234227,-1323.36979095,0.000109,2]
[333518191,1722226234236,-1323.36979095,0.000109,2]
[333518192,1722226234246,-1323.36979095,0.000109,2]
[333518193,1722226234256,-1323.36979095,0.000109,2]
[333518194,1722226234266,-1323.36979095,0.000109,2]
[333518195,1722226234275,-1323.36979095,0.000109,2]
[333518196,1722226234285,-1323.36979095,0.000109,2]
[333518197,1722226234294,-1323.36979095,0.000109,2]
[333518198,1722226234303,-1323.36979095,0.000109,2]
[333518199,1722226234312,-1323.36979095,0.000109,2]
[333518200,1722226234322,-1323.36979095,0.000109,2]
[333518201,1722226234332,-1323.36979095,0.000109,2]
[333518202,1722226234341,-1121.5825655,0.000109,2]
[333518203,1722226234351,-1200.0,0.000109,2]
[333518204,1722226234360,-560.9405579,0.000109,2]
[333518205,1722226234369,-16206.08139928,0.000109,2]
[333518206,1722226234378,-500.0,0.00010911,2]
[333518207,1722226234388,-500.0,0.00010912,2]
[333518208,1722226234398,-500.0,0.00010912,2]
[333518209,1722226234408,-363198.56332989,0.00010957,2]
[333518210,1722226234417,-777.94,0.00010958,2]
[333518211,1722226234426,-777.94,0.00010958,2]
[333518212,1722226234436,-777.94,0.00010958,2]
[333518213,1722226234445,-500.0,0.00010958,2]
[333518214,1722226234457,-500.0,0.00010958,2]
[333518215,1722226234466,-500.0,0.00010958,2]
[333518216,1722226234475,-500.0,0.00010958,2]
[333518217,1722226234485,-500.0,0.00010958,2]
[333518218,1722226234494,-208.8,0.00010958,2]
[333518219,1722226234503,-500.0,0.00010958,2]
[333518220,1722226234513,-500.0,0.00010958,2]
[333518221,1722226234522,-500.0,0.00010958,2]
[333518222,1722226234532,-500.0,0.00010958,2]
[333518223,1722226234541,-500.0,0.00010958,2]
[333518224,1722226234551,-500.0,0.00010958,2]
[333518225,1722226234560,-500.0,0.00010958,2]
[333518226,1722226234570,-500.0,0.00010958,2]
[333518227,1722226234580,-504.38286624,0.00010958,2]
[333518228,1722226234590,-504.77302606,0.00010958,2]
[333518229,1722226234599,-500.0,0.00010958,2]
[333518230,1722226234608,-500.0,0.00010958,2]
[333518231,1722226234618,-500.0,0.00010958,2]
[333518232,1722226234627,-504.15049739,0.00010958,2]
[333518233,1722226234637,-500.0,0.00010958,2]
[333518234,1722226234647,-503.85094014,0.00010958,2]
[333518235,1722226234656,-500.0,0.00010958,2]
[333518236,1722226234665,-500.0,0.00010958,2]
[333518237,1722226234675,-495.0276563,0.00010958,2]
[333518238,1722226234685,-500.0,0.00010958,2]
[333518239,1722226234695,-539.26867664,0.00010958,2]
[333518240,1722226234705,-500.0,0.00010958,2]
[333518241,1722226234715,-500.0,0.00010958,2]
[333518242,1722226234725,-500.0,0.00010958,2]
[333518243,1722226234735,-500.0,0.00010958,2]
[333518244,1722226234745,-500.0,0.00010958,2]
[333518245,1722226234754,-500.0,0.00010958,2]
[333518246,1722226234764,-507.51862922,0.00010958,2]
[333518247,1722226234774,-177.6199148,0.00010958,2]
[333518248,1722226234784,-500.0,0.00010958,2]
[333518249,1722226234794,-500.0,0.00010958,2]
[333518250,1722226234805,-500.0,0.00010958,2]
[333518251,1722226234814,-500.0,0.00010958,2]
[333518252,1722226234824,-500.0,0.00010958,2]
[333518253,1722226234834,-500.0,0.00010958,2]
[333518254,1722226234844,-500.0,0.00010958,2]
[333518255,1722226234854,-500.0,0.00010958,2]
[333518256,1722226234863,-500.0,0.00010958,2]
[333518257,1722226234876,-609.32864405,0.00010958,2]
[333518258,1722226234886,-500.0,0.00010958,2]
[333518259,1722226234897,-500.0,0.00010958,2]
[333518260,1722226234906,-500.0,0.00010958,2]
[333518261,1722226234917,-500.0,0.00010958,2]
[333518262,1722226234927,-500.0,0.00010958,2]
[333518263,1722226234937,-500.0,0.00010958,2]
[333518264,1722226234947,-500.0,0.00010958,2]
[333518265,1722226234958,-500.0,0.00010958,2]
[333518266,1722226234968,-500.0,0.00010958,2]
[333518267,1722226234978,-500.0,0.00010958,2]
[333518268,1722226234988,-500.0,0.00010958,2]
[333518269,1722226234998,-500.0,0.00010958,2]
[333518270,1722226235008,-500.0,0.00010958,2]
[333518271,1722226235018,-500.0,0.00010958,2]
[333518272,1722226235028,-500.0,0.00010958,2]
[333518273,1722226235038,-500.0,0.00010958,2]
[333518274,1722226235049,-500.0,0.00010958,2]
[333518275,1722226235059,-500.0,0.00010958,2]
[333518276,1722226235069,-500.0,0.00010958,2]
[333518277,1722226235079,-500.0,0.00010958,2]
[333518278,1722226235088,-500.0,0.00010958,2]
[333518279,1722226235099,-500.0,0.00010958,2]
[333518280,1722226235108,-500.0,0.00010958,2]
[333518281,1722226235117,-500.0,0.00010958,2]
[333518282,1722226235127,-507.89420471,0.00010958,2]
[333518283,1722226235137,-500.0,0.00010958,2]
[333518284,1722226235147,-500.0,0.00010958,2]
[333518285,1722226235156,-500.0,0.00010958,2]
[333518286,1722226235166,-500.0,0.00010958,2]
[333518287,1722226235175,-500.0,0.00010958,2]
[333518288,1722226235185,-500.0,0.00010958,2]
[333518289,1722226235195,-500.0,0.00010958,2]
[333518290,1722226235204,-500.0,0.00010958,2]